Cogmind - Beta 9.6 @@@ ROGUE MODE // 2020.06.14 @ 11:59:10 Player: Teratos Result: Destroyed by H-55 Commando with Assault Rifle Performance ------------- Evolutions (2) 1000 Regions Visited (3) 600 Robots Destroyed (79) 395 Value Destroyed (1966) 1966 Prototype IDs (6) 120 Alien Tech Used (0) 0 Bonus (0) 0 TOTAL SCORE: 4081 Bonus ------- None Cogmind --------- Core Integrity 0/550 Matter 199/300 Energy 99/100 System Corruption 0% Temperature Cool (0) Movement Core (100) Ox1 Location -8/Materials Parts ------- > --- POWER (1) -------- (None) > --- PROPULSION (2) --- Flight Unit > --- UTILITY (4) ------ Advanced Weight Redist. System > --- WEAPON (4) ------- Assault Cannon > --- INVENTORY (4) ---- Light Cannon Peak State ------------ > --- POWER ------------ Heavy Ion Engine > --- PROPULSION ------- Light Treads Advanced Treads > --- UTILITY ---------- Improved Heat Sink Small Storage Unit > --- WEAPON ----------- Heavy EM Shotgun Heavy EM Shotgun Heavy EM Shotgun Electrolaser > --- INVENTORY -------- Ion Engine Deuterium Engine Pulse Rifle Advanced Beam Cannon Gauss Rifle [Rating: 27] Favorites ----------- Power Ion Engine Engine Ion Engine Propulsion Light Treads Treads Light Treads Flight Unit Flight Unit Utility Small Storage Unit Device Improved Heat Sink Storage Small Storage Unit Weapon Pulse Rifle Energy Gun Pulse Rifle Energy Cannon Advanced Beam Cannon Ballistic Gun Heavy Assault Rifle Ballistic Cannon Assault Cannon Build | -11 -10 -9 -8 ------- Run | Scr Mat Mat Mat Slots Evolved 4 | . . 2 2 Power . | . . . . Propulsion . | . . . . Utility 2 | . . . 2 Weapon 2 | . . 2 . Parts Attached 76 | 6 5 23 42 Power 9 | 1 1 3 4 Engine 9 | 1 1 3 4 Core . | . . . . Reactor . | . . . . Propulsion 12 | 2 . 4 6 Treads 10 | 2 . 4 4 Leg . | . . . . Wheel . | . . . . Hover . | . . . . Flight 2 | . . . 2 Utility 5 | 1 1 . 3 Device 4 | . 1 . 3 Storage 1 | 1 . . . Processor . | . . . . Hackware . | . . . . Protection . | . . . . Artifact . | . . . . Weapon 50 | 2 3 16 29 Energy Gun 32 | 1 3 11 17 Energy Cannon 4 | . . . 4 Ballistic Gun 9 | 1 . 5 3 Ballistic Cannon 5 | . . . 5 Launcher . | . . . . Special Weapon . | . . . . Impact Weapon . | . . . . Slashing Weapon . | . . . . Piercing Weapon . | . . . . Special Melee Weapon . | . . . . Unidentified Prototypes 6 | . . 3 3 Parts Lost 36 | . 1 8 27 Power 5 | . . 2 3 Propulsion 6 | . . 2 4 Utility 3 | . . . 3 Weapon 22 | . 1 4 17 Highest Loss Streak 11 | . 1 3 11 Average Slot Usage (%) 79 | . 93 85 66 Engine 9 | . 14 8 7 Treads 18 | . 28 21 11 Flight 1 | . . . 2 Device 9 | . 7 11 7 Storage 10 | . 14 11 7 Energy Gun 22 | . 21 23 22 Ballistic Gun 6 | . 7 9 2 Ballistic Cannon 1 | . . . 2 Naked Turns . | . . . . Heaviest Build 28 | 12 14 26 28 Greatest Support 42 | 40 40 40 42 Greatest Overweight (x) 7 | . . 5 7 Average Overweight (x) . | . . . . Largest Inventory Capacity 6 | 6 6 6 6 Average Capacity 5 | 5 6 6 5 Most Carried 6 | . 2 2 6 Average Carried 1 | . . 1 3 Final Capacity 6 | 6 6 6 4 Final Carried 1 | . 1 1 1 Class Distribution -------------------- 44% | Gunner 32% | Mutant 14% | Scavenger-Gunner 8% | Scavenger-Mutant Dominant Class ---------------- Mutant | -10/Materials Gunner | -9/Materials Gunner | -8/Materials Resources | -11 -10 -9 -8 ----------- Run | Scr Mat Mat Mat Matter Collected 1155 | 92 209 298 556 Remotely . | . . . . Salvage Created 2891 | . 555 941 1395 Parts 200 | . 41 79 80 Haulers Intercepted 7 | . 2 4 1 Recyclers Shooed 2 | . 2 . . Parts Field Recycled . | . . . . Retrieved Matter . | . . . . Parts Self-Destructed . | . . . . Prevented . | . . . . Kills | -11 -10 -9 -8 ------- Run | Scr Mat Mat Mat Combat Hostiles Destroyed 50 | . 7 16 27 Melee 1 | . . 1 . Guns 40 | . 7 15 18 Cannons 7 | . . . 7 AOE 1 | . . . 1 Classes Destroyed 12 | . 7 3 2 Worker 3 | . . 2 1 Builder 9 | . 1 5 3 Tunneler 1 | . . 1 . Hauler 7 | . 2 4 1 Recycler 3 | . 2 . 1 Mechanic 1 | . . . 1 Operator 2 | . 1 1 . Watcher 3 | . 2 1 . Swarmer 13 | . 3 6 4 Grunt 26 | . 4 7 15 Sentry 10 | . . 3 7 Hunter 1 | . . . 1 Best Kill Streak 11 | . 5 11 5 Combat Bots Only 8 | . 3 8 5 Max Kills in Single Turn 3 | . 1 3 2 Gunslinging 2 | . . 2 1 Exploded 1 | . . . 1 Melee 1 | . . 1 . Uniques/NPCs Destroyed . | . . . . Combat | -11 -10 -9 -8 -------- Run | Scr Mat Mat Mat Damage Taken 3801 | . 417 718 2666 Core 688 | . 35 103 550 Absorbed by Shields . | . . . . Core Remaining (%) 86 | 100 86 74 . Volleys Fired 164 | . 44 47 73 Largest 4 | . 2 4 4 Hottest 257 | . 90 252 257 Shots Fired 440 | . 87 140 213 Gun 376 | . 87 140 149 Cannon 64 | . . . 64 Launcher . | . . . . Special . | . . . . Kinetic 142 | . 22 39 81 Thermal 218 | . 29 91 98 Explosive . | . . . . Electromagnetic 80 | . 36 10 34 Robot Hit Streak 25 | . 20 17 25 Robot Miss Streak 4 | . 3 3 4 Penetration Max 1 | . . . 1 Secondary Targets 7 | . . 2 5 Max Gunslinging Chain 2 | . . 2 2 Shots Hit Robots 289 | . 62 75 152 Core Hits 127 | . 29 39 59 Critical Hits 4 | . . . 4 Critical Kills . | . . . . Critical Parts Destroyed 3 | . . . 3 Melee Attacks . | . . . . Impact . | . . . . Slashing . | . . . . Piercing . | . . . . Sneak Attacks . | . . . . Combat Hostiles . | . . . . Follow-up Attacks . | . . . . Damage Inflicted 4613 | . 701 1123 2789 Guns 3650 | . 699 1119 1832 Cannons 810 | . . . 810 Explosions 142 | . . . 142 Melee . | . . . . Ramming 11 | . 2 4 5 Kinetic 1407 | . 119 403 885 Thermal 2378 | . 327 618 1433 Explosive . | . . . . Electromagnetic 817 | . 253 98 466 Impact . | . . . . Slashing . | . . . . Piercing . | . . . . Highest Corruption 2 | . . 2 . Average Corruption 2 | . . 2 . Corruption Purged . | . . . . Overload Shots . | . . . . Overflow Damage 14 | . . . 14 Projectiles 14 | . . . 14 Explosions . | . . . . Melee . | . . . . Knockbacks 6 | . . . 6 Impact . | . . . . Kinetic 6 | . . . 6 Secondary . | . . . . Self-Inflicted Damage 57 | . . . 57 Shots 1 | . . . 1 Rammed 9 | . 1 5 3 Targets Rammed 9 | . 1 5 3 Kicked . | . . . . Crushed . | . . . . Highest Temperature 447 | . 282 342 447 Average Temperature 132 | . 94 118 148 Received Heat Transfer 1608 | . 168 234 1206 Effects 6 | . 3 . 3 Shutdowns 1 | . . . 1 Energy Bleed 1 | . 1 . . Interference 3 | . 2 . 1 Damage (minor) 1 | . . . 1 Siege Activations . | . . . . Robots Corrupted . | . . . . Combat Hostiles . | . . . . Parts Fried . | . . . . Impact Corruptions . | . . . . Robots Melted 1 | . . . 1 Combat Hostiles 1 | . . . 1 Parts Melted 4 | . 1 2 1 Heat Transferred 5369 | . 962 1419 2988 Parts Sabotaged . | . . . . Parts Stolen . | . . . . Parts Stripped . | . . . . Power Chain Reactions 1 | . . . 1 Missiles Intercepted . | . . . . Alert | -11 -10 -9 -8 ------- Run | Scr Mat Mat Mat Peak Influence 384 | . 189 289 384 Average Influence 119 | . 68 70 199 Maximum Alert Level 1 | . . 1 1 Low Security (%) 79 | 100 100 89 57 Level 1 20 | . . 10 42 Level 2 . | . . . . Level 3 . | . . . . Level 4 . | . . . . Level 5 . | . . . . High Security . | . . . . Max Security . | . . . . Squads Dispatched 10 | . 1 2 7 Investigation 2 | . 1 . 1 Extermination . | . . . . Reinforcement 5 | . . 2 3 Assault . | . . . . Garrison 3 | . . . 3 Intercept . | . . . . Construction Impeded 1 | . . . 1 Haulers Reinforced . | . . . . Stealth | -11 -10 -9 -8 --------- Run | Scr Mat Mat Mat Distress Signals 6 | . 1 2 3 Communications Jammed . | . . . . Distress Signals . | . . . . Times Spotted 81 | . 12 29 40 Peak Tracking Total 8 | . 3 5 8 Tactical Retreats 1 | . . 1 . Traps | -11 -10 -9 -8 ------- Run | Scr Mat Mat Mat Traps Triggered 4 | . 1 3 . Indirectly . | . . . . Trap Hack Attempts . | . . . . Triggered . | . . . . Disarmed . | . . . . Reprogrammed . | . . . . Reused . | . . . . Traps Extracted . | . . . . Installed . | . . . . Triggered . | . . . . Machines | -11 -10 -9 -8 ---------- Run | Scr Mat Mat Mat Machines Disabled 3 | . 1 1 1 Max in Single Turn 1 | . 1 1 1 Machines Sabotaged . | . . . . Garrisons Compromised . | . . . . Overloaded Fab Kills . | . . . . Fab Network Shutdowns . | . . . . Hacking | -11 -10 -9 -8 --------- Run | Scr Mat Mat Mat Machines Accessed 8 | . 5 1 2 Terminals 7 | . 5 1 1 Fabricators . | . . . . Repair Stations 1 | . . . 1 Recycling Units . | . . . . Scanalyzers . | . . . . Garrison Access . | . . . . Total Hacks 27 | . 11 5 11 Successful 17 | . 6 3 8 Failed 10 | . 5 2 3 Catastrophic . | . . . . Database Lockouts . | . . . . Manual . | . . . . Terminals 18 | . 11 5 2 Fabricators . | . . . . Repair Stations 9 | . . . 9 Recycling Units . | . . . . Scanalyzers . | . . . . Garrison Access . | . . . . Terminal Hacks 10 | . 6 3 1 Branch Access Points 1 | . . . 1 Alert Level 2 | . . 2 . Unreport Threat 1 | . . 1 . Locate Traps 1 | . 1 . . Surveillance Status 1 | . 1 . . Hauler Manifests 1 | . 1 . . Zone Layout 3 | . 3 . . Fabricator Hacks . | . . . . Repair Station Hacks 7 | . . . 7 Scan Component 4 | . . . 4 Repair 3 | . . . 3 Recycling Unit Hacks . | . . . . Scanalyzer . | . . . . Garrison Access Hacks . | . . . . Unauthorized Hacks . | . . . . Terminals . | . . . . Fabricators . | . . . . Repair Stations . | . . . . Recycling Units . | . . . . Scanalyzers . | . . . . Garrison Access . | . . . . Data Cores Recovered 1 | . 1 . . Used . | . . . . Hacking Detections 5 | . 2 1 2 Full Trace Events 2 | . . 1 1 Feedback Events . | . . . . Feedback Blocked . | . . . . Robot Schematics Acquired . | . . . . Robots Built . | . . . . Matter . | . . . . Time . | . . . . Total Robot Build Rating . | . . . . Part Schematics Acquired . | . . . . Parts Built . | . . . . Matter . | . . . . Time . | . . . . Total Part Build Rating . | . . . . Parts Repaired 3 | . . . 3 Time 120 | . . . 120 Parts Recycled . | . . . . Recycled Matter . | . . . . Retrieved Matter . | . . . . Retrieved Components . | . . . . Parts Scanalyzed . | . . . . Part Schematics Acquired . | . . . . Parts Damaged . | . . . . Bothacking | -11 -10 -9 -8 ------------ Run | Scr Mat Mat Mat Used RIF Installer . | . . . . Robots Hacked . | . . . . Non-combat . | . . . . Combat . | . . . . Robot Hacks Applied . | . . . . Relay Couplers Released . | . . . . Robots Rewired . | . . . . Allies Hacked . | . . . . Hacks Repelled . | . . . . Allies | -11 -10 -9 -8 -------- Run | Scr Mat Mat Mat Total Allies . | . . . . Largest Group . | . . . . Highest-Rated Group . | . . . . Highest-Rated Ally . | . . . . Total Orders . | . . . . Ally Attacks . | . . . . Total Damage . | . . . . Kills . | . . . . Allies Corrupted . | . . . . Allies Melted . | . . . . Intel | -11 -10 -9 -8 ------- Run | Scr Mat Mat Mat Robot Analysis Total . | . . . . Derelict Logs Recovered . | . . . . Drone Launches . | . . . . Drone Recoveries . | . . . . Exploration | -11 -10 -9 -8 ------------- Run | Scr Mat Mat Mat Turns Passed 2533 | 48 491 1002 992 Spaces Moved 1005 | 27 217 395 366 Core 45 | 3 . 2 40 Treads 877 | 24 217 393 243 Legs . | . . . . Wheels . | . . . . Hover . | . . . . Flight 83 | . . . 83 Fastest Speed 37 | 50 160 160 37 Average Speed 150 | 147 160 161 133 Slowest Speed 400 | 160 160 300 400 Overloaded Moves . | . . . . Propulsion Burnouts . | . . . . Robots Hopped . | . . . . Cave-ins Triggered . | . . . . Exploration Rate (%) 31 | 4 50 30 40 Regions Visited 3 Branch Regions . Pre-discovered Areas . | . . . . Known Exits Taken . | . . . . Unknown Exits Taken 3 | 1 1 1 . Scrap Searched . | . . . . Spaces Dug . | . . . . Terrain Destroyed 5 | . . . 5 Melee . | . . . . Projectile 3 | . . . 3 AOE 2 | . . . 2 Actions | -11 -10 -9 -8 --------- Run | Scr Mat Mat Mat Total 1657 | 32 276 647 702 Wait 377 | . 9 170 198 Move 1003 | 26 217 394 366 Hop . | . . . . Pick Up 4 | . . . 4 Fast Attach 54 | 6 2 22 24 Attach 15 | . 1 . 14 Detach 11 | . . 1 10 Swap 7 | . 2 1 4 Drop 14 | . 1 7 6 Fire 164 | . 44 47 73 Melee . | . . . . Ram 2 | . . . 2 Kick . | . . . . Crush 6 | . . 5 1 Escape Stasis . | . . . . Rewire . | . . . . Trap . | . . . . Miscellaneous . | . . . . Route ------- -11/Scrapyard -10/Materials -9/Materials -8/Materials (discovered 1 exit: Sto) History --------- Turn | Location | Event 25 | -11/Scrapyard | Discovered new exit (range 15) 49 | -11/Scrapyard | Entered Materials 317 | -10/Materials | Build established: Mutant 525 | -10/Materials | Discovered new exit (range 10) 540 | -10/Materials | Entered another Materials area 540 | -9/Materials | Evolved 2 slots: Weapon x2 717 | -9/Materials | Lost 3 parts (1p2w) 1277 | -9/Materials | Build established: Scavenger-Gunner 1468 | -9/Materials | Destroyed 8 combat bots 1513 | -9/Materials | Discovered new exit (range 16) 1542 | -9/Materials | Entered another Materials area 1542 | -8/Materials | Evolved 2 slots: Utility x2 1596 | -8/Materials | Identified exit to Storage 1632 | -8/Materials | Build established: Gunner 1980 | -8/Materials | Repaired Pulse Rifle 2025 | -8/Materials | Repaired Gauss Rifle 2064 | -8/Materials | Repaired Adv. Treads 2078 | -8/Materials | Garrison activated, responded to threat 2190 | -8/Materials | Lost 6 parts (2n4w) 2302 | -8/Materials | Core integrity fell below 50% 2342 | -8/Materials | Lost 11 parts (2p1n2u6w) 2401 | -8/Materials | Core integrity fell below 20% 2461 | -8/Materials | Lost 4 parts (1p1n2w) 2534 | -8/Materials | Destroyed by H-55 Commando with Assault Rifle Last Messages --------------- 02424_ Acquired Heat Sink. 02430_ Electrolaser destroyed. 02432_ G-47 Trooper destroyed. 02432_ G-47 Trooper knocked back. 02433_ Acquired 32 matter. 02435_ G-47 Trooper knocked back. 02441_ G-47 Trooper destroyed. 02453_ Matter Filter disabled. 02463_ K-01 Serf collects debris. 02474_ G-47 Trooper knocked back. 02474_ G-47 Trooper destroyed. 02475_ K-01 Serf collects debris. 02477_ Slammed into K-01 Serf. 02481_ Acquired 55 matter. 02492_ Acquired Adv. Weight Redist. System. 02500_ Slug penetrates Wall. 02518_ Slug penetrates Integration Channel. 02518_ Integration Channel disabled. 02534_ Slug penetrates Integration Channel. 02534_ Heat Sink destroyed. Map ----- +----------------------------------------------------+ | ????????????????????????????????????????? | | ????????????????????????????????????????? | | ????????????????????????????????????????? | | ????????????????????????????????????????? | | ?????????????????#??????????????????????? | | ????????????????? ??????????????????????? | | ????????????????? ?????????????????????? | | ?????????????????= ?????????????????????? | | ????????????????? ?????????????????????? | | ????????????????? ?????????????????????? | | ????????????#####+#####?????????????????? | | ????????????# #?????????????????? | | ????????????#] #?????????????????? | | ????????????# #?????????????????? | | ????????????# """ """ ###########???????? | | ????????????# """ """ ## %% #???????? | | ????????????# """ """ ##%"%%"" #???????? | | ????????????# **[##%%%""" #???????? | | ??#######???# [=%##%%%""" #???????? | | ??# #############+##%%%""" ######### | | ### != # %%""" ## # | | =[ =+ %"""" ## """ # | | ### ! % #=%%""" ?# """ # | | ??# ############ #%* ## """ # | | ?####+###???######## #######+### # | | ?# #????# """ /a @ # # | | ?# """ #????# "T" # + # | | ?# "R" #????# ??# """ h # """ # | | ?# " " #????# ????## """ "" #! """ # | | ?# #????#???????# """ "" # """ # | | ?# [=#????????????# ^ """ #| """ # | | ?# !! %#????????????# "" # """ # | | ?#####/#????????????# ^""" # ? | | ?????#=#??????????### """ ######?? | | ###### #??????????# "" ##?????? | | % #??????????# " ####??? | | ##??????????+ #??? | | #???????????# #??? | | % #???????????# ########/###+#??? | | #???????????#######??# #??? | | #????????????????????# ""#??? | | #????????????????????# ! T"#??? | | * #????????????????????# """ ""#??? | | [% #????????????????????# """ #??? | | % ####????????????????????# """ #??? | | " #???????????????????????# #??? | | " #???????????????????????# #??? | | " #????????????????????????##########??? | | #????????????????????????????????????? | | #????????????????????????????????????? | +----------------------------------------------------+ Best States ------------- Heat Dissipation 45 Energy Generation 14 Energy Capacity 280 Matter Stores 300 Matter Capacity 300 Sight Range 16 Terrain Scan Density 10 Evasion (%) 62 Recoil Reduction 2 Item Schematics ----------------- None Robot Schematics ------------------ None Fabricated ------------ Nothing Alien Tech Used ----------------- None Achievements -------------- None Challenges ------------ None Game ------ Seed SwordBurstClaws Manual? 0 Play Time 00:22:34 Cumulative 37.4 hours Start 2020.06.14 @ 11:39:01 End 2020.06.14 @ 11:59:10 Sessions 1 Manual Loads 0 Difficulty Rogue Special Mode None Game No. 83 Rogue 83 Adventurer 0 Explorer 0 Win Type - Total 0 Types 0/0/0/0/0/0/0 Lore% 24 Gallery% 26 Achievement% 22 Wizard Run 0 Options --------- ASCII 0 Keyboard 0 Movement Numpad Keybinds 0 Fullscreen 1 Font 18/SmallcapsGlow Map View 76x50 Tactical HUD 1 Map Filters NONE Filters NONE Steam 1 RUN: 5812745b-4596-4675-9110-069435d0f445